fUST/lending_fUST_20250614
["ID","MTS","AMOUNT","RATE_DAILY","PERIOD"]
[365714429,1749844247138,-460.0,0.00021643,4]
[365714430,1749844247148,-160.0,0.00022679,2]
[365714431,1749844247157,-150.341,0.00023793,2]
[365714432,1749844247167,-150.0,0.00023793,2]
[365714433,1749844247176,-577.732995,0.000238,7]
[365714434,1749844247186,-8022.99491097,0.000239,2]
[365714435,1749844247195,-600.0,0.00023922,2]
[365714436,1749844247204,-5000.0,0.0002394,2]
[365714437,1749844247213,-2066.44124479,0.0002395,2]
[365714438,1749844247223,-2506.18882283,0.00023969,10]
[365714439,1749844247233,-150.0,0.00023973,2]
[365714440,1749844247242,-150.0,0.00023973,2]
[365714441,1749844247251,-720.25720017,0.00023995,2]
[365714442,1749844247260,-8751.62747895,0.00023998,2]
[365714443,1749844247269,-6154.89478925,0.00023998,2]
[365714444,1749844247278,-111805.04272877,0.00023998,2]
[365714445,1749844247290,-282.36,0.00023998,2]
[365714446,1749844247302,-9261.66573467,0.00023998,2]
[365714447,1749844248868,-460.0,0.00021095,4]
[365714448,1749844248878,-500.0,0.00021095,4]
[365714449,1749844248887,-460.0,0.00021095,4]
[365714450,1749844248897,-460.0,0.00021369,4]
[365714451,1749844248907,-500.0,0.00021369,4]
[365714452,1749844248916,-460.0,0.00021369,4]
[365714453,1749844248926,-460.0,0.00021643,4]
[365714454,1749844248935,-460.0,0.00021917,4]
[365714455,1749844248947,-460.0,0.00021917,4]
[365714456,1749844248958,-460.0,0.00022191,4]
[365714457,1749844248967,-460.0,0.00022191,4]
[365714458,1749844248976,-460.0,0.00022465,4]
[365714459,1749844248986,-460.0,0.00022465,4]
[365714460,1749844248995,-115.54943673,0.00022739,4]
[365714462,1749844663364,5000.0,0.0002,2]
[365714464,1749844693400,5000.0,0.0002,2]
[365714466,1749844738888,5000.0,0.0002,2]
[365714467,1749844871297,5000.0,0.00019939,2]
[365714468,1749844929425,2392.59175949,0.0002,2]
[365714469,1749844929449,1278.93441572,0.0002,2]
[365714470,1749844980653,3667.0,0.00024658,120]
[365714472,1749845234100,-1200.0,0.00020313,2]
[365714473,1749845234122,-215.09960159,0.00020313,2]
[365714474,1749845248219,-84.90039841,0.00020313,2]
[365714475,1749845248241,-80.21275574,0.00020313,2]
[365714476,1749845251430,-173.0428648,0.00020022,2]
[365714477,1749845345136,-39.0915881,0.00020022,2]
[365714478,1749845345156,-5884.65124819,0.00020314,2]
[365714479,1749845347162,-2823.21155501,0.00020314,2]
[365714480,1749845347183,-218.56,0.00020742,2]
[365714481,1749845347204,-344.91925375,0.00020842,2]
[365714482,1749845347243,-218.56,0.00020994,2]
[365714483,1749845347265,-242.7123921,0.00020995,2]
[365714484,1749845347287,-300.0,0.00020999,2]
[365714485,1749845347315,-724.26915196,0.00021,2]
[365714486,1749845347337,-399.92673842,0.00021083,2]
[365714487,1749845347359,-351.54,0.00021085,3]
[365714488,1749845347379,-413.53,0.00021085,3]
[365714489,1749845347399,-206.77,0.00021085,3]
[365714490,1749845347423,-620.32,0.00021085,3]
[365714491,1749845347446,-798.92,0.00021085,10]
[365714492,1749845347468,-581.6,0.00021085,10]
[365714493,1749845347489,-500.0,0.00021094,2]
[365714494,1749845347510,-1000.0,0.00021094,2]
[365714495,1749845347530,-1000.0,0.00021094,2]
[365714496,1749845347550,-1000.0,0.00021094,2]
[365714497,1749845347570,-1000.0,0.00021094,2]
[365714498,1749845347591,-1000.0,0.00021094,2]
[365714499,1749845347613,-1000.0,0.00021094,2]
[365714500,1749845347633,-440.0,0.00021095,4]
[365714501,1749845347653,-440.0,0.00021095,4]
[365714502,1749845347677,-430.0,0.00021095,4]
[365714503,1749845347697,-440.0,0.00021095,4]
[365714504,1749845347719,-420.0,0.00021095,4]
[365714505,1749845347740,-460.0,0.00021095,4]
[365714506,1749845347762,-460.0,0.00021095,4]
[365714507,1749845347782,-460.0,0.00021095,4]
[365714508,1749845347804,-460.0,0.00021095,4]
[365714509,1749845347824,-460.0,0.00021095,4]
[365714510,1749845347844,-460.0,0.00021095,4]
[365714511,1749845347865,-460.0,0.00021095,4]
[365714512,1749845347884,-460.0,0.00021095,4]
[365714513,1749845347904,-460.0,0.00021095,4]
[365714514,1749845347925,-572.98914834,0.00021095,4]
[365714515,1749845347947,-410.80457061,0.00021095,4]
[365714516,1749845347967,-460.0,0.00021095,4]
[365714517,1749845347989,-460.0,0.00021095,4]
[365714518,1749845348010,-460.0,0.00021095,4]
[365714519,1749845348031,-460.0,0.00021095,4]
[365714520,1749845348052,-460.0,0.00021095,4]
[365714521,1749845348073,-460.0,0.00021095,4]
[365714522,1749845348093,-460.0,0.00021095,4]
[365714523,1749845348114,-460.0,0.00021095,4]
[365714524,1749845348135,-460.0,0.00021095,4]
[365714525,1749845348154,-500.0,0.00021095,4]
[365714526,1749845348175,-500.0,0.00021095,4]
[365714527,1749845348196,-330.0,0.00021095,4]
[365714528,1749845348222,-151.0,0.00021095,4]
[365714529,1749845348242,-411.62163677,0.00021095,4]
[365714530,1749845348265,-151.0,0.00021095,4]
[365714531,1749845348285,-151.0,0.00021095,4]
[365714532,1749845348308,-300.28477608,0.00021095,4]
[365714533,1749845348328,-460.0,0.00021095,4]
[365714534,1749845348348,-460.0,0.00021095,4]
[365714535,1749845348369,-460.0,0.00021095,4]
[365714536,1749845348391,-460.0,0.00021095,4]
[365714537,1749845348411,-460.0,0.00021095,4]
[365714538,1749845348433,-270.0,0.00021095,4]
[365714539,1749845348453,-272.47906745,0.00021095,4]
[365714540,1749845348477,-572.79031165,0.00021095,4]
[365714541,1749845348498,-460.0,0.00021095,4]
[365714542,1749845348519,-432.39716831,0.00021095,4]
[365714543,1749845348541,-460.0,0.00021095,4]
[365714544,1749845348563,-460.0,0.00021095,4]
[365714545,1749845348583,-248.13228667,0.00021095,4]
[365714546,1749845348603,-430.0,0.00021095,4]
[365714547,1749845348625,-430.0,0.00021095,4]
[365714548,1749845348645,-460.0,0.00021095,4]
[365714549,1749845348665,-398.23836914,0.00021095,4]
[365714550,1749845348685,-430.0,0.00021095,4]
[365714551,1749845348706,-460.0,0.00021095,4]
[365714552,1749845348728,-460.0,0.00021095,4]
[365714553,1749845348749,-460.0,0.00021095,4]
[365714554,1749845348770,-404.81318171,0.00021095,4]
[365714555,1749845348791,-460.0,0.00021095,4]
[365714556,1749845348812,-460.0,0.00021095,4]
[365714557,1749845348832,-460.0,0.00021095,4]
[365714558,1749845348853,-460.0,0.00021095,4]
[365714559,1749845348872,-430.0,0.00021095,4]
[365714560,1749845348892,-430.0,0.00021095,4]
[365714561,1749845349045,-262.18874095,0.00021095,4]
[365714562,1749845349067,-430.01911832,0.00021095,4]
[365714563,1749845349087,-460.0,0.00021095,4]
[365714564,1749845349108,-430.0,0.00021095,4]
[365714565,1749845349127,-430.0,0.00021095,4]
[365714566,1749845349147,-460.0,0.00021095,4]
[365714567,1749845349180,-430.0,0.00021095,4]
[365714568,1749845349219,-233.35208697,0.00021095,4]
[365714569,1749845349259,-460.0,0.00021095,4]
[365714570,1749845349298,-1012.85984742,0.00021095,4]
[365714571,1749845349325,-460.0,0.00021095,4]
[365714572,1749845349345,-365.81082074,0.00021095,4]
[365714573,1749845349365,-313.93933695,0.00021095,4]
[365714574,1749845349384,-460.0,0.00021095,4]
[365714575,1749845349404,-430.0,0.00021095,4]
[365714576,1749845349423,-421.97511921,0.00021095,4]
[365714577,1749845349443,-430.0,0.00021095,4]
[365714578,1749845349464,-466.66793289,0.00021095,4]
[365714579,1749845349484,-460.0,0.00021095,4]
[365714580,1749845349504,-460.0,0.00021095,4]
[365714581,1749845349525,-513.0212566,0.00021095,4]
[365714582,1749845349546,-460.0,0.00021095,4]
[365714583,1749845349566,-471.60194967,0.00021095,4]
[365714584,1749845349586,-420.0,0.00021095,4]
[365714585,1749845349606,-460.0,0.00021095,4]
[365714586,1749845349625,-466.7958208,0.00021095,4]
[365714587,1749845349645,-427.38307187,0.00021095,4]
[365714588,1749845349668,-460.0,0.00021095,4]
[365714589,1749845349708,-460.0,0.00021095,4]
[365714590,1749845349753,-430.63438417,0.00021095,4]
[365714591,1749845349794,-256.95083678,0.00021095,4]
[365714592,1749845349829,-304.62745888,0.00021095,4]
[365714593,1749845349850,-460.0,0.00021095,4]
[365714594,1749845349871,-460.0,0.00021095,4]
[365714595,1749845349892,-460.0,0.00021095,4]
[365714596,1749845349913,-460.0,0.00021095,4]
[365714597,1749845349936,-460.0,0.00021095,4]
[365714598,1749845349957,-460.0,0.00021095,4]
[365714599,1749845349977,-405.5747463,0.00021095,4]
[365714600,1749845349998,-460.0,0.00021095,4]
[365714601,1749845350020,-390.0,0.00021095,4]
[365714602,1749845350041,-460.0,0.00021095,4]
[365714603,1749845350062,-460.0,0.00021095,4]
[365714604,1749845350083,-460.0,0.00021095,4]
[365714605,1749845350105,-432.13598396,0.00021095,4]
[365714606,1749845350126,-161.63,0.00021095,4]
[365714607,1749845350147,-460.0,0.00021095,4]
[365714608,1749845350177,-416.2760899,0.00021095,4]
[365714609,1749845350201,-460.0,0.00021095,2]
[365714610,1749845350229,-151.77102034,0.00021095,4]
[365714611,1749845350254,-159.78301553,0.00021095,4]
[365714612,1749845350283,-151.0,0.00021095,4]
[365714613,1749845350306,-208.48728359,0.00021095,4]
[365714614,1749845350331,-460.0,0.00021095,4]
[365714615,1749845350357,-151.0,0.00021095,4]
[365714616,1749845350380,-460.0,0.00021095,4]
[365714617,1749845350404,-420.0,0.00021095,4]
[365714618,1749845350430,-460.0,0.00021095,4]
[365714619,1749845350457,-400.0,0.00021095,4]
[365714620,1749845350481,-460.0,0.00021095,4]
[365714621,1749845350506,-420.0,0.00021095,4]
[365714622,1749845350529,-460.0,0.00021095,4]
[365714623,1749845350559,-460.0,0.00021095,4]
[365714624,1749845350581,-460.0,0.00021095,4]
[365714625,1749845350601,-574.85,0.00021095,4]
[365714626,1749845350622,-460.0,0.00021095,4]
[365714627,1749845350643,-460.0,0.00021095,4]
[365714628,1749845350668,-1129.79,0.00021095,4]
[365714629,1749845350687,-460.0,0.00021095,4]
[365714630,1749845350707,-460.0,0.00021095,4]
[365714631,1749845350727,-460.0,0.00021095,4]
[365714632,1749845350747,-460.0,0.00021095,4]
[365714633,1749845350770,-460.0,0.00021095,4]
[365714634,1749845350792,-6820.51,0.00021095,4]
[365714635,1749845350815,-1042.02,0.00021095,4]
[365714636,1749845350838,-319.5509278,0.00021095,4]
[365714637,1749845350859,-460.0,0.00021095,4]
[365714638,1749845350878,-407.00888609,0.00021095,4]
[365714639,1749845350901,-460.0,0.00021095,4]
[365714640,1749845350928,-460.0,0.00021095,4]
[365714641,1749845350949,-460.0,0.00021095,4]
[365714642,1749845350974,-1134.7,0.00021095,4]
[365714643,1749845350998,-460.0,0.00021095,4]
[365714644,1749845351019,-491.23865273,0.00021095,4]
[365714645,1749845351041,-460.0,0.00021095,4]
[365714646,1749845351060,-460.0,0.00021095,4]
[365714647,1749845351082,-2224.3,0.00021095,4]
[365714648,1749845351104,-460.0,0.00021095,4]
[365714649,1749845351125,-460.0,0.00021095,4]
[365714650,1749845351145,-460.0,0.00021095,4]
[365714651,1749845351167,-413.04895585,0.00021095,4]
[365714652,1749845351186,-416.97722116,0.00021095,4]
[365714653,1749845351207,-521.87119361,0.00021095,4]
[365714654,1749845351230,-460.0,0.00021095,4]
[365714655,1749845351250,-460.0,0.00021095,4]
[365714656,1749845351273,-1757.05,0.00021095,4]
[365714657,1749845351293,-460.0,0.00021095,4]
[365714658,1749845351313,-151.0,0.00021095,4]
[365714659,1749845351333,-460.0,0.00021095,4]
[365714660,1749845351352,-460.0,0.00021095,4]
[365714661,1749845351374,-1821.36,0.00021095,4]
[365714662,1749845351394,-460.0,0.00021095,4]
[365714663,1749845351416,-1165.77,0.00021095,4]
[365714664,1749845351437,-460.0,0.00021095,4]
[365714665,1749845351457,-438.11747306,0.00021095,4]
[365714666,1749845351480,-839.73,0.00021095,4]
[365714667,1749845351501,-460.0,0.00021095,4]
[365714668,1749845351522,-460.0,0.00021095,4]
[365714669,1749845351542,-437.6567793,0.00021095,4]
[365714670,1749845351564,-1933.14,0.00021095,4]
[365714671,1749845351584,-400.0,0.00021095,4]
[365714672,1749845351604,-460.0,0.00021095,4]
[365714673,1749845351627,-460.0,0.00021095,4]
[365714674,1749845351648,-460.0,0.00021095,4]
[365714675,1749845351670,-460.0,0.00021095,4]
[365714676,1749845351690,-460.0,0.00021095,4]
[365714677,1749845351711,-460.0,0.00021095,4]
[365714678,1749845351830,-460.0,0.00021095,4]
[365714679,1749845351851,-460.0,0.00021095,4]
[365714680,1749845351873,-460.0,0.00021095,4]
[365714681,1749845351893,-460.0,0.00021095,4]
[365714682,1749845351916,-460.0,0.00021095,4]
[365714683,1749845351936,-460.0,0.00021095,4]
[365714684,1749845351956,-420.0,0.00021095,4]
[365714685,1749845351977,-326.61019358,0.00021095,4]
[365714686,1749845351999,-460.0,0.00021095,4]
[365714687,1749845352020,-460.0,0.00021095,4]
[365714688,1749845352041,-460.0,0.00021095,4]
[365714689,1749845352063,-682.28,0.00021095,4]
[365714690,1749845352084,-460.0,0.00021095,4]
[365714691,1749845352105,-460.0,0.00021095,4]
[365714692,1749845352127,-495.45,0.00021095,4]
[365714693,1749845352149,-430.0,0.00021095,4]
[365714694,1749845352172,-460.0,0.00021095,4]
[365714695,1749845352193,-460.0,0.00021095,4]
[365714696,1749845352216,-430.0,0.00021095,4]
[365714697,1749845352259,-460.0,0.00021095,4]
[365714698,1749845352290,-460.0,0.00021095,4]
[365714699,1749845352310,-151.0,0.00021095,4]
[365714700,1749845352330,-584.39130876,0.00021095,4]
[365714701,1749845352351,-460.0,0.00021095,4]
[365714702,1749845352371,-216.12578421,0.00021095,4]
[365714703,1749845352393,-460.0,0.00021095,4]
[365714704,1749845352413,-151.0,0.00021095,4]
[365714705,1749845352436,-503.9,0.00021095,4]
[365714706,1749845352456,-460.0,0.00021095,4]
[365714707,1749845352476,-516.76275525,0.00021095,4]
[365714708,1749845352501,-460.0,0.00021095,4]
[365714709,1749845352524,-460.0,0.00021095,4]
[365714710,1749845352545,-500.0,0.00021095,2]
[365714711,1749845352566,-460.0,0.00021095,4]
[365714712,1749845352587,-430.0,0.00021095,4]
[365714713,1749845352608,-460.0,0.00021095,4]
[365714714,1749845352628,-500.0,0.00021095,2]
[365714715,1749845352647,-460.0,0.00021095,4]
[365714716,1749845352668,-460.0,0.00021095,4]
[365714717,1749845352689,-460.0,0.00021095,4]
[365714718,1749845352714,-452.2042487,0.00021095,4]
[365714719,1749845352735,-460.0,0.00021095,4]
[365714720,1749845352757,-460.0,0.00021095,4]
[365714721,1749845352780,-460.0,0.00021095,4]
[365714722,1749845352804,-924.35,0.00021095,4]
[365714723,1749845352825,-460.0,0.00021095,4]
[365714724,1749845352845,-430.0,0.00021095,4]
[365714725,1749845352866,-460.0,0.00021095,4]
[365714726,1749845352887,-460.0,0.00021095,4]
[365714727,1749845352908,-460.0,0.00021095,4]
[365714728,1749845352930,-460.0,0.00021095,4]
[365714729,1749845352952,-460.0,0.00021095,4]
[365714730,1749845352973,-460.0,0.00021095,4]
[365714731,1749845352994,-460.0,0.00021095,4]
[365714732,1749845353015,-430.86228388,0.00021095,4]
[365714733,1749845353038,-460.0,0.00021095,4]
[365714734,1749845353059,-460.0,0.00021095,4]
[365714735,1749845353079,-430.0,0.00021095,4]
[365714736,1749845353102,-420.0,0.00021095,4]
[365714737,1749845353123,-460.0,0.00021095,4]
[365714738,1749845353146,-781.06,0.00021095,4]
[365714739,1749845353170,-460.0,0.00021095,4]
[365714740,1749845353191,-1397.18,0.00021095,4]
[365714741,1749845353211,-431.4432613,0.00021095,4]
[365714742,1749845353234,-460.0,0.00021095,4]
[365714743,1749845353256,-460.0,0.00021095,4]
[365714744,1749845353276,-158.91917642,0.00021095,4]
[365714745,1749845353298,-460.0,0.00021095,4]
[365714746,1749845353319,-460.0,0.00021095,4]
[365714747,1749845353339,-319.96834035,0.00021095,4]
[365714748,1749845353359,-464.95652163,0.00021095,4]
[365714749,1749845353379,-460.0,0.00021095,4]
[365714750,1749845353400,-12969.7832269,0.00021095,2]
[365714755,1749845432579,-396.88900501,0.00021082,2]
[365714756,1749845432588,-300.0,0.00021094,2]
[365714757,1749845432598,-460.0,0.00021095,4]
[365714758,1749845432607,-460.0,0.00021095,4]
[365714759,1749845432617,-440.64958816,0.00021095,4]
[365714760,1749845432626,-460.0,0.00021095,4]
[365714761,1749845432635,-460.0,0.00021095,4]
[365714762,1749845432644,-460.0,0.00021095,4]
[365714763,1749845432653,-460.0,0.00021095,4]
[365714764,1749845432663,-460.0,0.00021095,4]
[365714765,1749845432672,-335.69215602,0.00021095,4]
[365714766,1749845432684,-806.65784398,0.00021095,4]
[365714767,1749845432694,-460.0,0.00021095,4]
[365714768,1749845432703,-460.0,0.00021095,4]
[365714769,1749845432712,-460.0,0.00021095,4]
[365714770,1749845432722,-460.0,0.00021095,4]
[365714771,1749845432733,-420.0,0.00021095,4]
[365714772,1749845432743,-475.3581481,0.00021095,4]
[365714773,1749845432752,-1265.76770314,0.00021095,4]
[365714774,1749845432763,-5424.16229686,0.00021095,4]
[365714776,1749845432773,-460.0,0.00021095,4]
[365714778,1749845432782,-460.0,0.00021095,4]
[365714780,1749845432791,-460.0,0.00021095,4]
[365714781,1749845432801,-460.0,0.00021095,4]
[365714782,1749845432810,-1821.09,0.00021095,4]
[365714783,1749845432821,-460.0,0.00021095,4]
[365714784,1749845432832,-460.0,0.00021095,4]
[365714785,1749845432841,-500.0,0.00021095,4]
[365714786,1749845432850,-460.0,0.00021095,4]
[365714787,1749845432859,-460.0,0.00021095,4]
[365714788,1749845432868,-1133.49,0.00021095,4]
[365714789,1749845432877,-2189.69,0.00021095,4]
[365714790,1749845432886,-257.04684791,0.00021095,4]
[365714791,1749845432895,-460.0,0.00021095,4]
[365714792,1749845432904,-460.0,0.00021095,4]
[365714793,1749845432915,-1115.91,0.00021095,4]
[365714794,1749845432925,-681.55791488,0.00021095,2]
[365714795,1749845433049,-36348.65885822,0.00021095,2]
[365714796,1749845433059,-2300.41,0.000211,2]
[365714797,1749845433069,-501.18673417,0.00021122,4]
[365714798,1749845433079,-502.52148124,0.00021122,4]
[365714799,1749845433089,-259.70467247,0.00021122,4]
[365714800,1749845433098,-151.0,0.00021122,4]
[365714801,1749845433108,-151.0,0.00021122,4]
[365714802,1749845433118,-151.0,0.00021122,4]
[365714803,1749845433128,-151.0,0.00021122,4]
[365714804,1749845433138,-500.0,0.00021122,2]
[365714805,1749845433149,-611.09802352,0.00021122,2]
[365714806,1749845433159,-151.0,0.0002115,4]
[365714807,1749845433168,-198.0,0.0002115,4]
[365714808,1749845433178,-169.63702806,0.0002115,4]
[365714809,1749845433187,-346.33704988,0.0002115,2]
[365714810,1749845433196,-151.0,0.00021177,4]
[365714811,1749845433206,-171.03443289,0.00021205,4]
[365714812,1749845433215,-263.66,0.00021359,3]
[365714813,1749845433225,-574.85,0.00021366,4]
[365714814,1749845433236,-160.0,0.00021367,2]
[365714815,1749845433250,-574.85,0.00021367,4]
[365714816,1749845433259,-574.85,0.00021368,4]
[365714817,1749845433269,-237.98110835,0.00021368,2]
[365714818,1749845433279,-500.0,0.00021368,2]
[365714819,1749845433290,-594.49058783,0.00021368,2]
[365714820,1749845433300,-500.0,0.00021368,2]
[365714821,1749845433310,-500.0,0.00021368,2]
[365714822,1749845433321,-500.0,0.00021368,2]
[365714823,1749845433332,-500.0,0.00021368,2]
[365714824,1749845433342,-473.87128663,0.00021368,2]
[365714825,1749845433351,-500.0,0.00021368,2]
[365714826,1749845433362,-508.50880777,0.00021368,2]
[365714827,1749845433372,-460.0,0.00021369,4]
[365714828,1749845433381,-460.0,0.00021369,4]
[365714829,1749845433391,-357.85464959,0.00021369,4]
[365714830,1749845433400,-460.0,0.00021369,4]
[365714831,1749845433411,-460.0,0.00021369,4]
[365714832,1749845433420,-410.0,0.00021369,4]
[365714833,1749845433430,-460.0,0.00021369,4]
[365714834,1749845433440,-460.0,0.00021369,4]
[365714835,1749845433450,-430.0,0.00021369,4]
[365714836,1749845433460,-460.0,0.00021369,4]
[365714837,1749845433470,-440.0,0.00021369,4]
[365714838,1749845433480,-460.0,0.00021369,4]
[365714839,1749845433490,-427.33331253,0.00021369,4]
[365714840,1749845433499,-460.0,0.00021369,4]
[365714841,1749845433510,-460.0,0.00021369,4]
[365714842,1749845433519,-460.0,0.00021369,4]
[365714843,1749845433529,-474.52407224,0.00021369,4]
[365714844,1749845433538,-460.0,0.00021369,4]
[365714845,1749845433548,-360.0,0.00021369,4]
[365714846,1749845433557,-245.9579736,0.00021369,4]
[365714847,1749845433567,-460.0,0.00021369,4]
[365714848,1749845433576,-460.0,0.00021369,4]
[365714849,1749845433586,-280.0,0.00021369,4]
[365714850,1749845433595,-460.0,0.00021369,4]
[365714851,1749845433604,-460.0,0.00021369,4]
[365714852,1749845433613,-460.0,0.00021369,4]
[365714853,1749845433622,-440.0,0.00021369,4]
[365714854,1749845433632,-420.0,0.00021369,4]
[365714855,1749845433641,-460.0,0.00021369,4]
[365714856,1749845433650,-460.0,0.00021369,4]
[365714857,1749845433661,-460.0,0.00021369,4]
[365714858,1749845433670,-460.0,0.00021369,2]
[365714859,1749845433680,-460.0,0.00021369,4]
[365714860,1749845433689,-460.0,0.00021369,4]
[365714861,1749845433699,-460.0,0.00021369,4]
[365714862,1749845433708,-584.74404832,0.00021369,4]
[365714863,1749845433721,-460.0,0.00021369,4]
[365714864,1749845433733,-430.0,0.00021369,4]
[365714865,1749845433745,-460.0,0.00021369,4]
[365714866,1749845433755,-460.0,0.00021369,4]
[365714867,1749845433765,-460.0,0.00021369,4]
[365714868,1749845433775,-411.71471395,0.00021369,4]
[365714869,1749845433784,-300.86217429,0.00021369,4]
[365714870,1749845433797,-430.0,0.00021369,4]
[365714871,1749845433807,-1821.36,0.00021369,4]
[365714872,1749845433816,-1165.77,0.00021369,4]
[365714873,1749845433826,-839.73,0.00021369,4]
[365714874,1749845433835,-460.0,0.00021369,4]
[365714875,1749845433844,-1933.14,0.00021369,4]
[365714876,1749845433854,-460.0,0.00021369,4]
[365714877,1749845433863,-285.13,0.00021369,4]
[365714878,1749845433872,-460.0,0.00021369,4]
[365714879,1749845433881,-290.0,0.00021369,4]
[365714880,1749845433890,-460.0,0.00021369,4]
[365714881,1749845433900,-460.0,0.00021369,4]
[365714882,1749845433910,-460.0,0.00021369,4]
[365714883,1749845433920,-460.0,0.00021369,4]
[365714884,1749845433929,-462.72220538,0.00021369,4]
[365714885,1749845433939,-460.0,0.00021369,4]
[365714886,1749845433951,-460.0,0.00021369,4]
[365714887,1749845433964,-682.28,0.00021369,4]
[365714888,1749845433974,-460.0,0.00021369,4]
[365714889,1749845433985,-495.45,0.00021369,4]
[365714890,1749845433995,-360.0,0.00021369,4]
[365714891,1749845434005,-360.0,0.00021369,4]
[365714892,1749845434014,-460.0,0.00021369,4]
[365714893,1749845434024,-460.0,0.00021369,4]
[365714894,1749845434034,-460.0,0.00021369,4]
[365714895,1749845434044,-460.0,0.00021369,4]
[365714896,1749845434053,-460.0,0.00021369,4]
[365714897,1749845434063,-460.0,0.00021369,4]
[365714898,1749845434073,-460.0,0.00021369,4]
[365714899,1749845434083,-460.0,0.00021369,4]
[365714900,1749845434092,-420.0,0.00021369,4]
[365714901,1749845434102,-460.0,0.00021369,4]
[365714902,1749845434112,-385.53277726,0.00021369,4]
[365714903,1749845434121,-460.0,0.00021369,4]
[365714904,1749845434131,-393.12398569,0.00021369,4]
[365714905,1749845434140,-924.35,0.00021369,4]
[365714906,1749845434150,-460.0,0.00021369,4]
[365714907,1749845434160,-460.0,0.00021369,4]
[365714908,1749845434170,-390.0,0.00021369,4]
[365714909,1749845434180,-460.0,0.00021369,4]
[365714910,1749845434190,-460.0,0.00021369,4]
[365714911,1749845434201,-460.0,0.00021369,4]
[365714912,1749845434210,-460.0,0.00021369,4]
[365714913,1749845434220,-460.0,0.00021369,4]
[365714914,1749845434230,-460.0,0.00021369,4]
[365714915,1749845434242,-781.06,0.00021369,4]
[365714916,1749845434254,-460.0,0.00021369,4]
[365714917,1749845434264,-1397.18,0.00021369,4]
[365714918,1749845434273,-460.0,0.00021369,4]
[365714919,1749845434283,-460.0,0.00021369,4]
[365714920,1749845434297,-370.0,0.00021369,4]
[365714921,1749845434321,-460.0,0.00021369,4]
[365714922,1749845434333,-460.0,0.00021369,4]
[365714923,1749845434344,-460.0,0.00021369,4]
[365714924,1749845434355,-420.0,0.00021369,4]
[365714925,1749845434366,-460.0,0.00021369,4]
[365714926,1749845434376,-1142.35,0.00021369,4]
[365714927,1749845434387,-460.0,0.00021369,4]
[365714928,1749845434396,-6689.93,0.00021369,4]
[365714929,1749845434406,-460.0,0.00021369,4]
[365714930,1749845434415,-460.0,0.00021369,4]
[365714931,1749845434425,-1821.09,0.00021369,4]
[365714932,1749845434434,-460.0,0.00021369,4]
[365714933,1749845434443,-400.0,0.00021369,4]
[365714934,1749845434453,-460.0,0.00021369,4]
[365714935,1749845434463,-1133.49,0.00021369,4]
[365714936,1749845434472,-2189.69,0.00021369,4]
[365714937,1749845434483,-460.0,0.00021369,4]
[365714938,1749845434493,-460.0,0.00021369,4]
[365714939,1749845434503,-1115.91,0.00021369,4]